[Event "Titled Tuesday Blitz February 07 Early 2023"]
[White "Zemlyanskii, Ivan"]
[Black "Bachmann, Axel"]
[WhiteFideId "24249971"]
[BlackFideId "3700488"]
[WhiteElo "2300"]
[BlackElo "2604"]
[Result "1-0"]
[Round "09"]
[TimeControl "180+2"]
[Date "2023.02.07"]
[WhiteClock "0:00:15"]
[BlackClock "0:00:01"]

1. d4 {[%clk 0:03:00]}  Nf6 {[%clk 0:02:58]} 2. c4 {[%clk 0:03:01]}  e6 {[%clk 0:02:58]} 3. Bf4 {[%clk 0:03:00]}  Bb4+ {[%clk 0:02:55]} 4. Nd2 {[%clk 0:02:59]}  c5 {[%clk 0:02:39]} 5. dxc5 {[%clk 0:02:53]}  Nc6 {[%clk 0:02:33]} 6. Nf3 {[%clk 0:02:51]}  Bxc5 {[%clk 0:02:31]} 7. e3 {[%clk 0:02:48]}  O-O {[%clk 0:02:27]} 8. Be2 {[%clk 0:02:49]}  h6 {[%clk 0:02:24]} 9. O-O {[%clk 0:02:46]}  Nh5 {[%clk 0:02:23]} 10. Ne4 {[%clk 0:02:28]}  Nxf4 {[%clk 0:02:19]} 11. Nxc5 {[%clk 0:02:11]}  Qe7 {[%clk 0:02:20]} 12. Ne4 {[%clk 0:02:02]}  Nxe2+ {[%clk 0:02:15]} 13. Qxe2 {[%clk 0:02:03]}  b6 {[%clk 0:02:04]} 14. Rfd1 {[%clk 0:02:02]}  Ba6 {[%clk 0:02:03]} 15. Qc2 {[%clk 0:01:56]}  Na5 {[%clk 0:01:49]} 16. b3 {[%clk 0:01:37]}  d5 {[%clk 0:01:32]} 17. cxd5 {[%clk 0:01:34]}  exd5 {[%clk 0:01:33]} 18. Nc3 {[%clk 0:01:35]}  Rac8 {[%clk 0:01:26]} 19. Qd2 {[%clk 0:01:33]}  Rfd8 {[%clk 0:01:16]} 20. Rac1 {[%clk 0:01:26]}  Bb7 {[%clk 0:01:13]} 21. Nb5 {[%clk 0:01:26]}  Nc6 {[%clk 0:01:05]} 22. Nbd4 {[%clk 0:01:22]}  Nb8 {[%clk 0:01:01]} 23. h3 {[%clk 0:01:11]}  Nd7 {[%clk 0:00:58]} 24. Qb2 {[%clk 0:01:01]}  Qf6 {[%clk 0:00:55]} 25. Qa3 {[%clk 0:00:58]}  a6 {[%clk 0:00:53]} 26. b4 {[%clk 0:00:56]}  Nf8 {[%clk 0:00:52]} 27. b5 {[%clk 0:00:52]}  a5 {[%clk 0:00:47]} 28. Rxc8 {[%clk 0:00:48]}  Rxc8 {[%clk 0:00:48]} 29. Rc1 {[%clk 0:00:49]}  Rc4 {[%clk 0:00:45]} 30. Nd2 {[%clk 0:00:47]}  Rxc1+ {[%clk 0:00:39]} 31. Qxc1 {[%clk 0:00:48]}  Ne6 {[%clk 0:00:40]} 32. Nxe6 {[%clk 0:00:43]}  Qxe6 {[%clk 0:00:39]} 33. Nf3 {[%clk 0:00:39]}  Qd6 {[%clk 0:00:35]} 34. Nd4 {[%clk 0:00:37]}  g6 {[%clk 0:00:35]} 35. a4 {[%clk 0:00:35]}  Kf8 {[%clk 0:00:31]} 36. Qb2 {[%clk 0:00:31]}  Ke7 {[%clk 0:00:30]} 37. Nf3 {[%clk 0:00:25]}  Bc8 {[%clk 0:00:31]} 38. Qg7 {[%clk 0:00:23]}  Qf6 {[%clk 0:00:28]} 39. Qg8 {[%clk 0:00:21]}  Bf5 {[%clk 0:00:20]} 40. Nd4 {[%clk 0:00:17]}  Bd7 {[%clk 0:00:20]} 41. Qb8 {[%clk 0:00:17]}  Qd6 {[%clk 0:00:20]} 42. Qb7 {[%clk 0:00:17]}  Kf8 {[%clk 0:00:20]} 43. Nc6 {[%clk 0:00:17]}  Bf5 {[%clk 0:00:04]} 44. Qxb6 {[%clk 0:00:18]}  Bc2 {[%clk 0:00:03]} 45. Qd4 {[%clk 0:00:16]}  Kg8 {[%clk 0:00:01]} 46. Nxa5 {[%clk 0:00:15]}  h5 {[%clk 0:00:01]} 47. Nc6 {[%clk 0:00:15]}  Bb3 {[%clk 0:00:01]} 48. a5 {[%clk 0:00:15]}  Bc4 {[%clk 0:00:01]} 49. Qb6 {[%clk 0:00:15]} 1-0


[Site "https://www.chess.com"]

[Event "Titled Tuesday Blitz February 07 Early 2023"]
[White "Assaubayeva, Bibisara"]
[Black "Kozak, Adam"]
[WhiteFideId "13708694"]
[BlackFideId "753246"]
[WhiteElo "2464"]
[BlackElo "2572"]
[Result "0-1"]
[Round "09"]
[TimeControl "180+2"]
[Date "2023.02.07"]
[WhiteClock "0:00:02"]
[BlackClock "0:00:03"]

1. e4 {[%clk 0:03:00]}  e5 {[%clk 0:02:58]} 2. Nf3 {[%clk 0:03:00]}  Nc6 {[%clk 0:02:57]} 3. Bc4 {[%clk 0:03:00]}  Bc5 {[%clk 0:02:56]} 4. Nc3 {[%clk 0:02:56]}  Nf6 {[%clk 0:02:55]} 5. d3 {[%clk 0:02:55]}  a6 {[%clk 0:02:51]} 6. O-O {[%clk 0:02:48]}  d6 {[%clk 0:02:50]} 7. Be3 {[%clk 0:02:42]}  Bxe3 {[%clk 0:02:50]} 8. fxe3 {[%clk 0:02:42]}  O-O {[%clk 0:02:49]} 9. d4 {[%clk 0:02:33]}  b5 {[%clk 0:02:49]} 10. Bd3 {[%clk 0:02:33]}  h6 {[%clk 0:02:49]} 11. d5 {[%clk 0:02:31]}  Ne7 {[%clk 0:02:45]} 12. Nd2 {[%clk 0:02:31]}  Ng6 {[%clk 0:02:34]} 13. b4 {[%clk 0:02:24]}  Bd7 {[%clk 0:02:28]} 14. h3 {[%clk 0:02:21]}  c5 {[%clk 0:02:26]} 15. dxc6 {[%clk 0:02:19]}  Bxc6 {[%clk 0:02:26]} 16. a4 {[%clk 0:02:14]}  Qb6 {[%clk 0:02:16]} 17. Qe1 {[%clk 0:01:23]}  bxa4 {[%clk 0:01:47]} 18. Rb1 {[%clk 0:01:16]}  Nh7 {[%clk 0:01:33]} 19. Nc4 {[%clk 0:01:13]}  Qc7 {[%clk 0:01:31]} 20. Na5 {[%clk 0:01:04]}  Ne7 {[%clk 0:01:17]} 21. Qh4 {[%clk 0:00:36]}  Ng5 {[%clk 0:01:12]} 22. Ra1 {[%clk 0:00:27]}  Bb5 {[%clk 0:01:00]} 23. Qe1 {[%clk 0:00:18]}  Qb6 {[%clk 0:00:55]} 24. Qe2 {[%clk 0:00:12]}  Bxd3 {[%clk 0:00:53]} 25. Qxd3 {[%clk 0:00:13]}  Qxb4 {[%clk 0:00:48]} 26. Rxa4 {[%clk 0:00:14]}  Qc5 {[%clk 0:00:47]} 27. Nb3 {[%clk 0:00:12]}  Qc6 {[%clk 0:00:46]} 28. Rc4 {[%clk 0:00:11]}  Qd7 {[%clk 0:00:41]} 29. Rd1 {[%clk 0:00:10]}  Rad8 {[%clk 0:00:35]} 30. Ra4 {[%clk 0:00:09]}  Ng6 {[%clk 0:00:33]} 31. Rxa6 {[%clk 0:00:08]}  Nh4 {[%clk 0:00:32]} 32. Qe2 {[%clk 0:00:08]}  Nxh3+ {[%clk 0:00:23]} 33. gxh3 {[%clk 0:00:08]}  Qxh3 {[%clk 0:00:24]} 34. Raxd6 {[%clk 0:00:01]}  Qg3+ {[%clk 0:00:15]} 35. Kf1 {[%clk 0:00:02]}  Rc8 {[%clk 0:00:10]} 36. Nd5 {[%clk 0:00:01]}  Kh8 {[%clk 0:00:07]} 37. Ne7 {[%clk 0:00:01]}  Qh3+ {[%clk 0:00:06]} 38. Kg1 {[%clk 0:00:01]}  Nf3+ {[%clk 0:00:02]} 39. Kf2 {[%clk 0:00:01]}  Rxc2 {[%clk 0:00:01]} 40. Qxc2 {[%clk 0:00:01]}  Qh2+ {[%clk 0:00:02]} 41. Kxf3 {[%clk 0:00:02]}  Qxc2 {[%clk 0:00:02]} 42. Rd8 {[%clk 0:00:02]}  Rxd8 {[%clk 0:00:02]} 43. Rxd8+ {[%clk 0:00:03]}  Kh7 {[%clk 0:00:02]} 44. Nd2 {[%clk 0:00:03]}  Qd1+ {[%clk 0:00:02]} 45. Kf2 {[%clk 0:00:02]}  Qh1 {[%clk 0:00:02]} 46. Nf3 {[%clk 0:00:02]}  Qa1 {[%clk 0:00:02]} 47. Nf5 {[%clk 0:00:02]}  Qa7 {[%clk 0:00:01]} 48. Rd2 {[%clk 0:00:02]}  Qc7 {[%clk 0:00:01]} 49. Ng3 {[%clk 0:00:03]}  g6 {[%clk 0:00:02]} 50. Kg2 {[%clk 0:00:04]}  Kg7 {[%clk 0:00:02]} 51. Kf2 {[%clk 0:00:04]}  Qa7 {[%clk 0:00:02]} 52. Kg2 {[%clk 0:00:05]}  Qxe3 {[%clk 0:00:02]} 53. Re2 {[%clk 0:00:05]}  Qc5 {[%clk 0:00:03]} 54. Rd2 {[%clk 0:00:06]}  Qe7 {[%clk 0:00:03]} 55. Rd5 {[%clk 0:00:06]}  f6 {[%clk 0:00:04]} 56. Nf1 {[%clk 0:00:05]}  h5 {[%clk 0:00:04]} 57. Ng3 {[%clk 0:00:05]}  Qe6 {[%clk 0:00:04]} 58. Rd3 {[%clk 0:00:03]}  Qg4 {[%clk 0:00:04]} 59. Kf2 {[%clk 0:00:01]}  h4 {[%clk 0:00:04]} 60. Ne2 {[%clk 0:00:01]}  g5 {[%clk 0:00:04]} 61. Rd7+ {[%clk 0:00:02]}  Qxd7 {[%clk 0:00:03]} 0-1


[Site "https://www.chess.com"]

[Event "Titled Tuesday Blitz February 07 Early 2023"]
[White "Gokerkan, Cem Kaan"]
[Black "Rakhmatullaev, Almas"]
[WhiteFideId "6336760"]
[BlackFideId "14205793"]
[WhiteElo "2500"]
[BlackElo "2275"]
[Result "0-1"]
[Round "09"]
[TimeControl "180+2"]
[Date "2023.02.07"]
[WhiteClock "0:00:08"]
[BlackClock "0:00:09"]

1. e4 {[%clk 0:02:59]}  e5 {[%clk 0:03:00]} 2. Nc3 {[%clk 0:02:58]}  Nf6 {[%clk 0:02:59]} 3. g3 {[%clk 0:02:58]}  g6 {[%clk 0:02:52]} 4. Bg2 {[%clk 0:02:53]}  Bg7 {[%clk 0:02:52]} 5. Nge2 {[%clk 0:02:53]}  O-O {[%clk 0:02:52]} 6. O-O {[%clk 0:02:53]}  d6 {[%clk 0:02:51]} 7. d3 {[%clk 0:02:50]}  Nc6 {[%clk 0:02:48]} 8. h3 {[%clk 0:02:50]}  Ne8 {[%clk 0:02:44]} 9. f4 {[%clk 0:02:50]}  f5 {[%clk 0:02:43]} 10. Be3 {[%clk 0:02:36]}  Be6 {[%clk 0:02:39]} 11. d4 {[%clk 0:02:29]}  exd4 {[%clk 0:02:32]} 12. Nxd4 {[%clk 0:02:29]}  Nxd4 {[%clk 0:02:31]} 13. Bxd4 {[%clk 0:02:30]}  fxe4 {[%clk 0:01:49]} 14. Nxe4 {[%clk 0:02:28]}  h6 {[%clk 0:01:49]} 15. Qd2 {[%clk 0:01:57]}  Qd7 {[%clk 0:01:45]} 16. Kh2 {[%clk 0:01:56]}  Rd8 {[%clk 0:01:35]} 17. Rae1 {[%clk 0:01:56]}  Qa4 {[%clk 0:01:06]} 18. Bxg7 {[%clk 0:01:42]}  Nxg7 {[%clk 0:01:07]} 19. Nc3 {[%clk 0:01:42]}  Qb4 {[%clk 0:01:07]} 20. Re4 {[%clk 0:01:35]}  Qc5 {[%clk 0:00:56]} 21. Rfe1 {[%clk 0:01:33]}  Bf7 {[%clk 0:00:50]} 22. b4 {[%clk 0:01:25]}  Qh5 {[%clk 0:00:45]} 23. Re7 {[%clk 0:01:15]}  d5 {[%clk 0:00:40]} 24. Rxc7 {[%clk 0:01:04]}  g5 {[%clk 0:00:22]} 25. g4 {[%clk 0:00:59]}  Qh4 {[%clk 0:00:21]} 26. f5 {[%clk 0:00:58]}  h5 {[%clk 0:00:17]} 27. Bf3 {[%clk 0:00:44]}  Rfe8 {[%clk 0:00:11]} 28. Rxe8+ {[%clk 0:00:40]}  Nxe8 {[%clk 0:00:12]} 29. Rxb7 {[%clk 0:00:33]}  Nf6 {[%clk 0:00:12]} 30. Qg2 {[%clk 0:00:21]}  hxg4 {[%clk 0:00:08]} 31. Bxg4 {[%clk 0:00:22]}  d4 {[%clk 0:00:06]} 32. Rxf7 {[%clk 0:00:07]}  Kxf7 {[%clk 0:00:06]} 33. Ne4 {[%clk 0:00:04]}  Nxe4 {[%clk 0:00:06]} 34. Qxe4 {[%clk 0:00:05]}  Qf2+ {[%clk 0:00:06]} 35. Kh1 {[%clk 0:00:05]}  Qf1+ {[%clk 0:00:06]} 36. Kh2 {[%clk 0:00:05]}  Qf4+ {[%clk 0:00:06]} 37. Qxf4 {[%clk 0:00:05]}  gxf4 {[%clk 0:00:07]} 38. Be2 {[%clk 0:00:05]}  Kf6 {[%clk 0:00:08]} 39. Bd3 {[%clk 0:00:05]}  Rg8 {[%clk 0:00:08]} 40. a4 {[%clk 0:00:05]}  f3 {[%clk 0:00:08]} 41. b5 {[%clk 0:00:05]}  f2 {[%clk 0:00:08]} 42. a5 {[%clk 0:00:05]}  Rg1 {[%clk 0:00:08]} 43. b6 {[%clk 0:00:05]}  axb6 {[%clk 0:00:09]} 44. axb6 {[%clk 0:00:06]}  f1=Q {[%clk 0:00:09]} 45. Bxf1 {[%clk 0:00:07]}  Rxf1 {[%clk 0:00:09]} 46. Kg3 {[%clk 0:00:08]}  Rxf5 {[%clk 0:00:09]} 0-1


[Site "https://www.chess.com"]

[Event "Titled Tuesday Blitz February 07 Early 2023"]
[White "Szpar, Milosz"]
[Black "Harsha Bharathakoti"]
[WhiteFideId "1184989"]
[BlackFideId "5078776"]
[WhiteElo "2447"]
[BlackElo "2602"]
[Result "1-0"]
[Round "09"]
[TimeControl "180+2"]
[Date "2023.02.07"]
[WhiteClock "0:00:11"]
[BlackClock "0:00:04"]

1. e4 {[%clk 0:03:00]}  g6 {[%clk 0:02:59]} 2. d4 {[%clk 0:03:00]}  Bg7 {[%clk 0:03:00]} 3. Nf3 {[%clk 0:03:00]}  d6 {[%clk 0:03:00]} 4. Bc4 {[%clk 0:03:00]}  Nf6 {[%clk 0:02:59]} 5. Qe2 {[%clk 0:03:00]}  O-O {[%clk 0:02:57]} 6. O-O {[%clk 0:03:00]}  Bg4 {[%clk 0:02:52]} 7. Nbd2 {[%clk 0:02:58]}  Nc6 {[%clk 0:02:50]} 8. Qd3 {[%clk 0:02:26]}  e5 {[%clk 0:02:43]} 9. dxe5 {[%clk 0:02:19]}  dxe5 {[%clk 0:02:41]} 10. h3 {[%clk 0:02:15]}  Bd7 {[%clk 0:02:31]} 11. a3 {[%clk 0:02:11]}  Qe7 {[%clk 0:02:26]} 12. Re1 {[%clk 0:01:51]}  Rad8 {[%clk 0:02:21]} 13. Qe3 {[%clk 0:01:49]}  Nh5 {[%clk 0:02:20]} 14. Nf1 {[%clk 0:01:49]}  Nf4 {[%clk 0:02:17]} 15. b4 {[%clk 0:01:44]}  Be6 {[%clk 0:01:43]} 16. Qb3 {[%clk 0:01:44]}  h5 {[%clk 0:00:55]} 17. Bxf4 {[%clk 0:01:42]}  exf4 {[%clk 0:00:56]} 18. Rad1 {[%clk 0:01:43]}  Bxc4 {[%clk 0:00:39]} 19. Qxc4 {[%clk 0:01:44]}  a6 {[%clk 0:00:40]} 20. Rd5 {[%clk 0:01:38]}  Ne5 {[%clk 0:00:36]} 21. Nxe5 {[%clk 0:01:36]}  Bxe5 {[%clk 0:00:36]} 22. Nd2 {[%clk 0:01:36]}  c6 {[%clk 0:00:36]} 23. Rd3 {[%clk 0:01:33]}  Rxd3 {[%clk 0:00:32]} 24. cxd3 {[%clk 0:01:34]}  Rd8 {[%clk 0:00:32]} 25. Nf3 {[%clk 0:01:34]}  Qd6 {[%clk 0:00:29]} 26. d4 {[%clk 0:01:31]}  Bxd4 {[%clk 0:00:29]} 27. e5 {[%clk 0:00:56]}  Qd5 {[%clk 0:00:28]} 28. Qc2 {[%clk 0:00:57]}  Bb6 {[%clk 0:00:23]} 29. e6 {[%clk 0:00:54]}  f5 {[%clk 0:00:23]} 30. e7 {[%clk 0:00:53]}  Re8 {[%clk 0:00:24]} 31. Re5 {[%clk 0:00:48]}  Qd6 {[%clk 0:00:22]} 32. Qc4+ {[%clk 0:00:46]}  Kg7 {[%clk 0:00:21]} 33. Re6 {[%clk 0:00:30]}  Qd1+ {[%clk 0:00:22]} 34. Re1 {[%clk 0:00:24]}  Qd5 {[%clk 0:00:22]} 35. Qc3+ {[%clk 0:00:23]}  Kg8 {[%clk 0:00:23]} 36. Qf6 {[%clk 0:00:19]}  Qf7 {[%clk 0:00:23]} 37. Qd6 {[%clk 0:00:17]}  Kg7 {[%clk 0:00:10]} 38. Re6 {[%clk 0:00:17]}  Bc7 {[%clk 0:00:05]} 39. Qd4+ {[%clk 0:00:10]}  Kg8 {[%clk 0:00:05]} 40. Ng5 {[%clk 0:00:10]}  Qg7 {[%clk 0:00:04]} 41. Qd7 {[%clk 0:00:10]}  Qa1+ {[%clk 0:00:02]} 42. Kh2 {[%clk 0:00:11]}  f3+ {[%clk 0:00:03]} 43. g3 {[%clk 0:00:10]}  Bxg3+ {[%clk 0:00:03]} 44. Kxg3 {[%clk 0:00:10]}  Qg1+ {[%clk 0:00:04]} 45. Kxf3 {[%clk 0:00:10]}  Qh1+ {[%clk 0:00:04]} 46. Ke2 {[%clk 0:00:11]} 1-0


[Site "https://www.chess.com"]

[Event "Titled Tuesday Blitz February 07 Early 2023"]
[White "Postny, Evgeny"]
[Black "Ajay, Karthikeyan"]
[WhiteFideId "2804344"]
[BlackFideId "35011685"]
[WhiteElo "2549"]
[BlackElo "2454"]
[Result "1/2-1/2"]
[Round "09"]
[TimeControl "180+2"]
[Date "2023.02.07"]
[WhiteClock "0:00:06"]
[BlackClock "0:00:18"]

1. Nf3 {[%clk 0:03:00]}  Nf6 {[%clk 0:02:56]} 2. c4 {[%clk 0:03:01]}  g6 {[%clk 0:02:55]} 3. Nc3 {[%clk 0:03:01]}  Bg7 {[%clk 0:02:55]} 4. e4 {[%clk 0:03:01]}  O-O {[%clk 0:02:55]} 5. d4 {[%clk 0:03:01]}  d6 {[%clk 0:02:52]} 6. Be2 {[%clk 0:02:58]}  Bg4 {[%clk 0:02:51]} 7. O-O {[%clk 0:02:55]}  Nc6 {[%clk 0:02:51]} 8. Be3 {[%clk 0:02:55]}  Nd7 {[%clk 0:02:49]} 9. d5 {[%clk 0:02:54]}  Bxf3 {[%clk 0:02:41]} 10. Bxf3 {[%clk 0:02:55]}  Nce5 {[%clk 0:02:36]} 11. Be2 {[%clk 0:02:55]}  Nb6 {[%clk 0:02:37]} 12. Qb3 {[%clk 0:02:47]}  Ned7 {[%clk 0:02:34]} 13. Qc2 {[%clk 0:02:43]}  c6 {[%clk 0:02:26]} 14. b3 {[%clk 0:02:37]}  Rc8 {[%clk 0:02:15]} 15. Rac1 {[%clk 0:02:34]}  cxd5 {[%clk 0:02:14]} 16. exd5 {[%clk 0:02:34]}  Bxc3 {[%clk 0:02:15]} 17. Bxb6 {[%clk 0:02:17]}  Nxb6 {[%clk 0:02:14]} 18. Qxc3 {[%clk 0:02:17]}  Nxd5 {[%clk 0:02:15]} 19. Qd4 {[%clk 0:02:17]}  Nb6 {[%clk 0:02:12]} 20. Bf3 {[%clk 0:02:15]}  Qc7 {[%clk 0:02:11]} 21. Rfe1 {[%clk 0:02:14]}  Rfe8 {[%clk 0:02:11]} 22. h4 {[%clk 0:02:14]}  Nd7 {[%clk 0:01:46]} 23. Qxa7 {[%clk 0:02:04]}  Nc5 {[%clk 0:01:46]} 24. Qa3 {[%clk 0:02:02]}  Ra8 {[%clk 0:01:42]} 25. Qb4 {[%clk 0:02:00]}  Nd3 {[%clk 0:01:40]} 26. Qxb7 {[%clk 0:02:00]}  Qxb7 {[%clk 0:01:39]} 27. Bxb7 {[%clk 0:02:01]}  Rxa2 {[%clk 0:01:38]} 28. Bc6 {[%clk 0:01:58]}  Rc8 {[%clk 0:01:37]} 29. Bd5 {[%clk 0:01:52]}  e6 {[%clk 0:01:35]} 30. Bf3 {[%clk 0:01:43]}  Rb8 {[%clk 0:01:28]} 31. Ra1 {[%clk 0:01:42]}  Nxe1 {[%clk 0:01:23]} 32. Rxa2 {[%clk 0:01:40]}  Nxf3+ {[%clk 0:01:23]} 33. gxf3 {[%clk 0:01:41]}  Rxb3 {[%clk 0:01:24]} 34. Kg2 {[%clk 0:01:29]}  Rc3 {[%clk 0:01:24]} 35. Ra4 {[%clk 0:01:27]}  h5 {[%clk 0:01:22]} 36. Kg3 {[%clk 0:01:26]}  Kg7 {[%clk 0:01:23]} 37. Ra6 {[%clk 0:01:26]}  Rd3 {[%clk 0:01:21]} 38. Rc6 {[%clk 0:01:24]}  Kf6 {[%clk 0:01:17]} 39. Rc7 {[%clk 0:01:23]}  Rc3 {[%clk 0:01:15]} 40. Rd7 {[%clk 0:01:21]}  Rd3 {[%clk 0:01:09]} 41. c5 {[%clk 0:01:15]}  d5 {[%clk 0:01:09]} 42. c6 {[%clk 0:01:15]}  Rc3 {[%clk 0:01:09]} 43. c7 {[%clk 0:01:15]}  e5 {[%clk 0:01:09]} 44. Rd6+ {[%clk 0:01:10]}  Kf5 {[%clk 0:01:09]} 45. Rxd5 {[%clk 0:01:04]}  Rxc7 {[%clk 0:01:08]} 46. Ra5 {[%clk 0:00:58]}  Rc3 {[%clk 0:01:06]} 47. Kg2 {[%clk 0:00:53]}  f6 {[%clk 0:01:02]} 48. Ra6 {[%clk 0:00:50]}  Rc4 {[%clk 0:00:59]} 49. Kg3 {[%clk 0:00:49]}  Rf4 {[%clk 0:00:58]} 50. Rb6 {[%clk 0:00:47]}  Rc4 {[%clk 0:00:52]} 51. Ra6 {[%clk 0:00:46]}  g5 {[%clk 0:00:51]} 52. hxg5 {[%clk 0:00:47]}  fxg5 {[%clk 0:00:30]} 53. Ra8 {[%clk 0:00:46]}  Rc3 {[%clk 0:00:28]} 54. Kg2 {[%clk 0:00:42]}  h4 {[%clk 0:00:25]} 55. Rf8+ {[%clk 0:00:41]}  Ke6 {[%clk 0:00:26]} 56. Re8+ {[%clk 0:00:41]}  Kf6 {[%clk 0:00:26]} 57. Rf8+ {[%clk 0:00:41]}  Kg6 {[%clk 0:00:25]} 58. Re8 {[%clk 0:00:41]}  Kf6 {[%clk 0:00:20]} 59. Rf8+ {[%clk 0:00:41]}  Ke6 {[%clk 0:00:19]} 60. Rg8 {[%clk 0:00:40]}  h3+ {[%clk 0:00:15]} 61. Kxh3 {[%clk 0:00:36]}  Rxf3+ {[%clk 0:00:16]} 62. Kg2 {[%clk 0:00:37]}  Rf5 {[%clk 0:00:16]} 63. Ra8 {[%clk 0:00:35]}  e4 {[%clk 0:00:14]} 64. Ra6+ {[%clk 0:00:30]}  Ke5 {[%clk 0:00:14]} 65. Ra8 {[%clk 0:00:28]}  Kf4 {[%clk 0:00:13]} 66. Re8 {[%clk 0:00:23]}  Re5 {[%clk 0:00:13]} 67. Rf8+ {[%clk 0:00:23]}  Kg4 {[%clk 0:00:13]} 68. Rg8 {[%clk 0:00:21]}  e3 {[%clk 0:00:13]} 69. fxe3 {[%clk 0:00:19]}  Rxe3 {[%clk 0:00:13]} 70. Rg7 {[%clk 0:00:13]}  Re2+ {[%clk 0:00:13]} 71. Kf1 {[%clk 0:00:13]}  Rb2 {[%clk 0:00:12]} 72. Kg1 {[%clk 0:00:13]}  Kh4 {[%clk 0:00:11]} 73. Ra7 {[%clk 0:00:09]}  g4 {[%clk 0:00:11]} 74. Ra3 {[%clk 0:00:09]}  Rc2 {[%clk 0:00:10]} 75. Rb3 {[%clk 0:00:08]}  Ra2 {[%clk 0:00:10]} 76. Rc3 {[%clk 0:00:08]}  Ra1+ {[%clk 0:00:11]} 77. Kg2 {[%clk 0:00:08]}  Ra2+ {[%clk 0:00:12]} 78. Kg1 {[%clk 0:00:09]}  Rd2 {[%clk 0:00:13]} 79. Rb3 {[%clk 0:00:09]}  Rd6 {[%clk 0:00:13]} 80. Kg2 {[%clk 0:00:08]}  Rf6 {[%clk 0:00:14]} 81. Ra3 {[%clk 0:00:07]}  Rc6 {[%clk 0:00:14]} 82. Rb3 {[%clk 0:00:07]}  Rc5 {[%clk 0:00:15]} 83. Ra3 {[%clk 0:00:07]}  Kg5 {[%clk 0:00:15]} 84. Rb3 {[%clk 0:00:07]}  Ra5 {[%clk 0:00:16]} 85. Rc3 {[%clk 0:00:07]}  Rf5 {[%clk 0:00:16]} 86. Kg3 {[%clk 0:00:07]}  Rb5 {[%clk 0:00:17]} 87. Rd3 {[%clk 0:00:07]}  Rc5 {[%clk 0:00:15]} 88. Ra3 {[%clk 0:00:06]}  Rf5 {[%clk 0:00:15]} 89. Rb3 {[%clk 0:00:06]}  Kh5 {[%clk 0:00:15]} 90. Ra3 {[%clk 0:00:06]}  Rb5 {[%clk 0:00:15]} 91. Rc3 {[%clk 0:00:06]}  Rd5 {[%clk 0:00:15]} 92. Rb3 {[%clk 0:00:06]}  Rc5 {[%clk 0:00:16]} 93. Ra3 {[%clk 0:00:06]}  Kg5 {[%clk 0:00:16]} 94. Rb3 {[%clk 0:00:06]}  Re5 {[%clk 0:00:16]} 95. Ra3 {[%clk 0:00:06]}  Rf5 {[%clk 0:00:17]} 96. Rb3 {[%clk 0:00:06]}  Rf1 {[%clk 0:00:17]} 97. Ra3 {[%clk 0:00:06]}  Rg1+ {[%clk 0:00:17]} 98. Kf2 {[%clk 0:00:06]}  Rc1 {[%clk 0:00:18]} 99. Kg3 {[%clk 0:00:07]}  Rg1+ {[%clk 0:00:17]} 100. Kf2 {[%clk 0:00:07]}  Rh1 {[%clk 0:00:18]} 101. Kg2 {[%clk 0:00:07]}  Rh3 {[%clk 0:00:17]} 102. Rxh3 {[%clk 0:00:05]}  gxh3+ {[%clk 0:00:18]} 103. Kxh3 {[%clk 0:00:06]} 1/2-1/2


[Site "https://www.chess.com"]

[Event "Titled Tuesday Blitz February 07 Early 2023"]
[White "Ter-Sahakyan, Samvel"]
[Black "Aradhya, Garg"]
[WhiteFideId "13302531"]
[BlackFideId "25006746"]
[WhiteElo "2617"]
[BlackElo "2284"]
[Result "1-0"]
[Round "09"]
[TimeControl "180+2"]
[Date "2023.02.07"]
[WhiteClock "0:00:38"]
[BlackClock "0:00:44"]

1. d4 {[%clk 0:03:00]}  d5 {[%clk 0:03:00]} 2. c4 {[%clk 0:02:59]}  e6 {[%clk 0:03:00]} 3. Nf3 {[%clk 0:02:58]}  Nf6 {[%clk 0:02:59]} 4. g3 {[%clk 0:02:59]}  dxc4 {[%clk 0:02:57]} 5. Bg2 {[%clk 0:02:59]}  Bd7 {[%clk 0:02:57]} 6. Nbd2 {[%clk 0:02:53]}  Bc6 {[%clk 0:02:57]} 7. Nxc4 {[%clk 0:02:51]}  Nbd7 {[%clk 0:02:57]} 8. O-O {[%clk 0:02:49]}  Be7 {[%clk 0:02:56]} 9. Bf4 {[%clk 0:02:46]}  O-O {[%clk 0:02:55]} 10. Rc1 {[%clk 0:02:46]}  a5 {[%clk 0:02:49]} 11. a3 {[%clk 0:02:37]}  a4 {[%clk 0:02:49]} 12. Re1 {[%clk 0:02:37]}  Be4 {[%clk 0:02:47]} 13. Ncd2 {[%clk 0:02:33]}  Bc6 {[%clk 0:02:46]} 14. e4 {[%clk 0:02:32]}  Rc8 {[%clk 0:02:42]} 15. Qc2 {[%clk 0:02:28]}  h6 {[%clk 0:02:18]} 16. Nc4 {[%clk 0:02:26]}  Ra8 {[%clk 0:02:06]} 17. Rcd1 {[%clk 0:02:18]}  Nb6 {[%clk 0:02:02]} 18. Nfe5 {[%clk 0:02:05]}  Bb5 {[%clk 0:02:01]} 19. Nxb6 {[%clk 0:01:43]}  cxb6 {[%clk 0:02:02]} 20. d5 {[%clk 0:01:42]}  exd5 {[%clk 0:01:59]} 21. exd5 {[%clk 0:01:40]}  Bd6 {[%clk 0:01:49]} 22. Qf5 {[%clk 0:01:36]}  Qc8 {[%clk 0:01:47]} 23. Qxc8 {[%clk 0:01:33]}  Raxc8 {[%clk 0:01:45]} 24. Ng6 {[%clk 0:01:30]}  Bxf4 {[%clk 0:01:37]} 25. Ne7+ {[%clk 0:01:26]}  Kh7 {[%clk 0:01:34]} 26. Nxc8 {[%clk 0:01:26]}  Rxc8 {[%clk 0:01:28]} 27. gxf4 {[%clk 0:01:26]}  Rc2 {[%clk 0:01:29]} 28. d6 {[%clk 0:01:21]}  Bd7 {[%clk 0:01:28]} 29. Be4+ {[%clk 0:00:59]}  Nxe4 {[%clk 0:01:27]} 30. Rxe4 {[%clk 0:01:00]}  Rc8 {[%clk 0:01:26]} 31. Re7 {[%clk 0:00:59]}  Rd8 {[%clk 0:01:26]} 32. Rxf7 {[%clk 0:00:56]}  Kg6 {[%clk 0:01:26]} 33. Re7 {[%clk 0:00:56]}  Kf6 {[%clk 0:01:27]} 34. Rd4 {[%clk 0:00:52]}  Bc6 {[%clk 0:01:27]} 35. h3 {[%clk 0:00:47]}  Rxd6 {[%clk 0:01:26]} 36. Rxd6+ {[%clk 0:00:47]}  Kxe7 {[%clk 0:01:26]} 37. Rd4 {[%clk 0:00:47]}  Ke6 {[%clk 0:01:26]} 38. Kh2 {[%clk 0:00:47]}  Kf5 {[%clk 0:01:24]} 39. Kg3 {[%clk 0:00:47]}  Ke6 {[%clk 0:01:13]} 40. Kg4 {[%clk 0:00:46]}  g6 {[%clk 0:01:13]} 41. h4 {[%clk 0:00:45]}  Kf6 {[%clk 0:00:57]} 42. Rd6+ {[%clk 0:00:45]}  Kf7 {[%clk 0:00:57]} 43. f5 {[%clk 0:00:45]}  h5+ {[%clk 0:00:52]} 44. Kg5 {[%clk 0:00:44]}  gxf5 {[%clk 0:00:53]} 45. Kxf5 {[%clk 0:00:44]}  Ke7 {[%clk 0:00:51]} 46. Rd4 {[%clk 0:00:44]}  Be8 {[%clk 0:00:50]} 47. Kg5 {[%clk 0:00:42]}  Bf7 {[%clk 0:00:49]} 48. Rxa4 {[%clk 0:00:41]}  Kd6 {[%clk 0:00:45]} 49. f4 {[%clk 0:00:40]}  Kc5 {[%clk 0:00:44]} 50. Rb4 {[%clk 0:00:40]}  b5 {[%clk 0:00:43]} 51. f5 {[%clk 0:00:40]}  Be8 {[%clk 0:00:43]} 52. Kf6 {[%clk 0:00:38]}  Kd6 {[%clk 0:00:43]} 53. Rd4+ {[%clk 0:00:38]}  Kc5 {[%clk 0:00:43]} 54. Rd2 {[%clk 0:00:38]}  Bc6 {[%clk 0:00:43]} 55. Ke7 {[%clk 0:00:38]}  b4 {[%clk 0:00:43]} 56. axb4+ {[%clk 0:00:38]}  Kxb4 {[%clk 0:00:44]} 57. f6 {[%clk 0:00:38]} 1-0


[Site "https://www.chess.com"]